fUSD/lending_fUSD_20250804
["ID","MTS","AMOUNT","RATE_DAILY","PERIOD"]
[377181202,1754268693942,-720.19,0.00050136,120]
[377181203,1754268693952,-667.87,0.00050136,60]
[377181204,1754268693962,-400.0,0.00050136,120]
[377181205,1754268693972,-400.0,0.00050136,120]
[377181206,1754268693982,-400.0,0.00050136,120]
[377181207,1754268693993,-220.556036,0.00050136,120]
[377181208,1754268694003,-400.0,0.00050136,120]
[377181209,1754268694014,-447.44031982,0.00050136,120]
[377181210,1754268694024,-1042.81,0.00050136,120]
[377181211,1754268694034,-1607.03,0.00050136,120]
[377181212,1754268694044,-400.0,0.00050136,120]
[377181213,1754268694055,-151.0,0.00050136,120]
[377181214,1754268694065,-400.0,0.00050136,120]
[377181215,1754268694075,-400.0,0.00050136,120]
[377181216,1754268694086,-220.556036,0.00050136,120]
[377181217,1754268694096,-693.25,0.00050136,120]
[377181218,1754268694107,-791.76,0.00050136,120]
[377181219,1754268694117,-400.0,0.00050136,120]
[377181220,1754268694126,-902.83,0.00050136,120]
[377181221,1754268694136,-400.0,0.00050136,120]
[377181222,1754268694146,-223.149411,0.00050136,120]
[377181223,1754268694156,-400.0,0.00050136,120]
[377181224,1754268694165,-400.0,0.00050136,120]
[377181225,1754268694176,-400.0,0.00050136,120]
[377181226,1754268694186,-261.69411243,0.00050136,120]
[377181227,1754268694196,-223.149411,0.00050136,120]
[377181228,1754268694205,-562.43,0.00050136,120]
[377181229,1754268694216,-715.25,0.00050136,120]
[377181230,1754268694226,-400.0,0.00050136,120]
[377181231,1754268694236,-1235.78,0.00050136,120]
[377181232,1754268694247,-400.0,0.00050136,120]
[377181233,1754268694257,-400.0,0.00050136,120]
[377181234,1754268694266,-418.35,0.00050136,120]
[377181235,1754268694276,-882.13,0.00050136,120]
[377181236,1754268694286,-400.0,0.00050136,120]
[377181237,1754268694296,-400.0,0.00050136,120]
[377181238,1754268694306,-400.0,0.00050136,120]
[377181239,1754268694315,-426.62,0.00050136,120]
[377181240,1754268694325,-400.0,0.00050136,120]
[377181241,1754268694335,-400.0,0.00050136,120]
[377181242,1754268694344,-1619.25,0.00050136,120]
[377181243,1754268694356,-400.0,0.00050136,120]
[377181244,1754268694366,-1436.52,0.00050136,120]
[377181245,1754268694375,-835.63,0.00050136,120]
[377181246,1754268694386,-400.0,0.00050136,120]
[377181247,1754268694396,-400.0,0.00050136,120]
[377181248,1754268694405,-400.0,0.00050136,120]
[377181249,1754268694415,-151.0,0.00050136,120]
[377181250,1754268694425,-894.51,0.00050136,120]
[377181251,1754268694436,-621.2,0.00050136,120]
[377181252,1754268694446,-1018.59,0.00050136,120]
[377181253,1754268694456,-1373.98,0.00050136,120]
[377181254,1754268694466,-400.0,0.00050136,120]
[377181255,1754268694476,-456.11,0.00050136,120]
[377181256,1754268694486,-1531.36,0.00050136,120]
[377181257,1754268694496,-881.26,0.00050136,120]
[377181258,1754268694506,-400.0,0.00050136,120]
[377181259,1754268694516,-853.22,0.00050136,120]
[377181260,1754268694525,-400.0,0.00050136,120]
[377181261,1754268694535,-1010.93,0.00050136,120]
[377181262,1754268694545,-652.92,0.00050136,120]
[377181263,1754268694555,-1008.77,0.00050136,120]
[377181264,1754268694565,-447.52,0.00050136,120]
[377181265,1754268694574,-400.0,0.00050136,120]
[377181266,1754268694584,-400.0,0.00050136,120]
[377181267,1754268694594,-400.0,0.00050136,120]
[377181268,1754268694605,-400.0,0.00050136,120]
[377181269,1754268694616,-439.75196402,0.00050136,120]
[377181270,1754268694627,-1051.17,0.00050136,120]
[377181271,1754268694638,-400.0,0.00050136,120]
[377181272,1754268694649,-1093.28,0.00050136,120]
[377181273,1754268694659,-400.0,0.00050136,120]
[377181274,1754268694671,-1544.86,0.00050136,120]
[377181275,1754268694683,-702.82,0.00050136,120]
[377181276,1754268694694,-544.8,0.00050136,120]
[377181277,1754268694704,-400.0,0.00050136,120]
[377181278,1754268694715,-400.0,0.00050136,120]
[377181279,1754268694726,-400.0,0.00050136,120]
[377181280,1754268694737,-552.48,0.00050136,120]
[377181281,1754268694749,-400.0,0.00050136,120]
[377181282,1754268694760,-1553.31,0.00050136,120]
[377181283,1754268694770,-1124.67,0.00050136,120]
[377181284,1754268694779,-400.0,0.00050136,120]
[377181285,1754268694790,-400.0,0.00050136,120]
[377181286,1754268694800,-798.23,0.00050136,120]
[377181287,1754268694811,-400.0,0.00050136,120]
[377181288,1754268694821,-608.06,0.00050136,120]
[377181289,1754268694831,-1527.9,0.00050136,120]
[377181290,1754268694841,-400.0,0.00050136,120]
[377181291,1754268694852,-947.85,0.00050136,120]
[377181292,1754268694862,-400.0,0.00050136,120]
[377181293,1754268694872,-981.29,0.00050136,120]
[377181294,1754268694881,-400.0,0.00050136,120]
[377181295,1754268694892,-987.27,0.00050136,120]
[377181296,1754268694901,-400.0,0.00050136,120]
[377181297,1754268694912,-400.0,0.00050136,120]
[377181298,1754268694921,-400.0,0.00050136,120]
[377181299,1754268694931,-520.59,0.00050136,120]
[377181300,1754268694941,-237.21214915,0.00050136,120]
[377181301,1754268694951,-400.0,0.00050136,120]
[377181302,1754268694960,-749.39,0.00050136,120]
[377181303,1754268694971,-540.0,0.00050136,120]
[377181304,1754268694980,-1111.61,0.00050136,120]
[377181305,1754268694990,-977.04,0.00050136,120]
[377181306,1754268695000,-400.0,0.00050136,120]
[377181307,1754268695010,-400.0,0.00050136,120]
[377181308,1754268695021,-400.0,0.00050136,120]
[377181309,1754268695031,-400.0,0.00050136,120]
[377181310,1754268695041,-400.0,0.00050136,120]
[377181311,1754268695051,-400.0,0.00050136,120]
[377181312,1754268695062,-858.32,0.00050136,120]
[377181313,1754268695072,-400.0,0.00050136,120]
[377181314,1754268695082,-524.03,0.00050136,120]
[377181315,1754268695092,-400.0,0.00050136,120]
[377181316,1754268695104,-400.0,0.00050136,120]
[377181317,1754268695115,-400.0,0.00050136,120]
[377181318,1754268695125,-400.0,0.00050136,120]
[377181319,1754268695135,-637.78,0.00050136,120]
[377181320,1754268695144,-1637.94,0.00050136,120]
[377181321,1754268695154,-1658.43,0.00050136,120]
[377181322,1754268695164,-400.0,0.00050136,120]
[377181323,1754268695174,-400.0,0.00050136,120]
[377181324,1754268695184,-400.0,0.00050136,120]
[377181325,1754268695194,-483.41,0.00050136,120]
[377181326,1754268695204,-4463.09,0.00050136,120]
[377181327,1754268695214,-598.15,0.00050136,120]
[377181328,1754268695224,-400.0,0.00050136,120]
[377181329,1754268695234,-400.0,0.00050136,120]
[377181330,1754268695245,-1021.73,0.00050136,120]
[377181331,1754268695523,-400.0,0.00050136,120]
[377181332,1754268695537,-400.0,0.00050136,120]
[377181333,1754268695547,-400.0,0.00050136,120]
[377181334,1754268695556,-754.89,0.00050136,120]
[377181335,1754268695566,-588.48,0.00050136,120]
[377181336,1754268695575,-400.0,0.00050136,120]
[377181337,1754268695584,-2668.08,0.00050136,120]
[377181338,1754268695594,-1584.6,0.00050136,120]
[377181339,1754268695604,-1209.71,0.00050136,120]
[377181340,1754268695614,-400.0,0.00050136,120]
[377181341,1754268695623,-400.0,0.00050136,120]
[377181342,1754268695632,-1362.53,0.00050136,120]
[377181343,1754268695642,-1522.49,0.00050136,120]
[377181344,1754268695651,-400.0,0.00050136,120]
[377181345,1754268695661,-647.61,0.00050136,120]
[377181346,1754268695670,-801.6,0.00050136,120]
[377181347,1754268695680,-1682.47,0.00050136,120]
[377181348,1754268695692,-400.0,0.00050136,120]
[377181349,1754268695702,-2375.94,0.00050136,120]
[377181350,1754268695711,-856.16,0.00050136,120]
[377181351,1754268695721,-1262.21,0.00050136,120]
[377181352,1754268695731,-1150.07,0.00050136,120]
[377181353,1754268695741,-400.0,0.00050136,120]
[377181354,1754268695751,-1014.08,0.00050136,120]
[377181355,1754268695762,-400.0,0.00050136,120]
[377181356,1754268695772,-604.67,0.00050136,120]
[377181357,1754268695781,-400.0,0.00050136,120]
[377181358,1754268695792,-776.57,0.00050136,120]
[377181359,1754268695802,-400.0,0.00050136,120]
[377181360,1754268695811,-496.71,0.00050136,120]
[377181361,1754268695821,-633.78,0.00050136,120]
[377181362,1754268695830,-400.0,0.00050136,120]
[377181363,1754268695840,-400.0,0.00050136,120]
[377181364,1754268695850,-3407.72,0.00050136,120]
[377181365,1754268695860,-1700.65,0.00050136,120]
[377181366,1754268695870,-860.5,0.00050136,120]
[377181367,1754268695880,-400.0,0.00050136,120]
[377181368,1754268695889,-400.0,0.00050136,120]
[377181369,1754268695899,-400.0,0.00050136,120]
[377181370,1754268695909,-5122.26,0.00050136,118]
[377181371,1754268695918,-400.0,0.00050136,120]
[377181372,1754268695928,-400.0,0.00050136,120]
[377181373,1754268695937,-400.0,0.00050136,120]
[377181374,1754268695948,-400.0,0.00050136,120]
[377181375,1754268695958,-400.0,0.00050136,120]
[377181376,1754268695969,-400.0,0.00050136,120]
[377181377,1754268695979,-400.0,0.00050136,120]
[377181378,1754268695988,-400.0,0.00050136,120]
[377181379,1754268695998,-496.84732814,0.00050136,120]
[377181380,1754268696008,-400.0,0.00050136,120]
[377181381,1754268696017,-400.0,0.00050136,120]
[377181382,1754268696027,-400.0,0.00050136,120]
[377181383,1754268696036,-400.0,0.00050136,120]
[377181384,1754268696045,-400.0,0.00050136,120]
[377181385,1754268696056,-2275.99,0.00050136,120]
[377181386,1754268696065,-400.0,0.00050136,120]
[377181387,1754268696075,-400.0,0.00050136,120]
[377181388,1754268696084,-357.97512076,0.00050136,120]
[377181389,1754268696094,-400.0,0.00050136,120]
[377181390,1754268696104,-400.0,0.00050136,120]
[377181391,1754268696114,-747.61,0.00050136,120]
[377181392,1754268696123,-295.245203,0.00050136,120]
[377181393,1754268696133,-400.0,0.00050136,120]
[377181394,1754268696143,-6663.96,0.00050136,120]
[377181395,1754268696152,-504.1,0.00050136,120]
[377181396,1754268696162,-400.0,0.00050136,120]
[377181397,1754268696172,-400.0,0.00050136,120]
[377181398,1754268696182,-422.64,0.00050136,120]
[377181399,1754268696191,-400.0,0.00050136,120]
[377181400,1754268696201,-400.0,0.00050136,120]
[377181401,1754268696210,-295.245203,0.00050136,120]
[377181402,1754268696219,-400.0,0.00050136,120]
[377181403,1754268696230,-759.38,0.00050136,120]
[377181404,1754268696239,-400.0,0.00050136,120]
[377181405,1754268696249,-400.0,0.00050136,120]
[377181406,1754268696259,-1263.16,0.00050136,120]
[377181407,1754268696268,-1400.47,0.00050136,120]
[377181408,1754268696278,-400.0,0.00050136,120]
[377181409,1754268696288,-1244.75,0.00050136,120]
[377181410,1754268696297,-965.49,0.00050136,120]
[377181411,1754268696307,-1286.36,0.00050136,120]
[377181412,1754268696316,-151.0,0.00050136,120]
[377181413,1754268696326,-400.0,0.00050136,120]
[377181414,1754268696335,-911.39,0.00050136,120]
[377181415,1754268696345,-400.0,0.00050136,120]
[377181416,1754268696356,-400.0,0.00050136,120]
[377181417,1754268696366,-942.83,0.00050136,120]
[377181418,1754268696375,-400.0,0.00050136,120]
[377181419,1754268696385,-400.0,0.00050136,120]
[377181420,1754268696395,-89208.25,0.00050136,120]
[377181421,1754268696404,-297.2554697,0.00050136,120]
[377181422,1754268696414,-400.0,0.00050136,120]
[377181423,1754268696423,-842.57,0.00050136,120]
[377181424,1754268696432,-400.0,0.00050136,120]
[377181425,1754268696442,-1359.66,0.00050136,120]
[377181426,1754268696451,-400.0,0.00050136,120]
[377181427,1754268696461,-852.42,0.00050136,120]
[377181428,1754268696470,-400.0,0.00050136,120]
[377181429,1754268696480,-400.0,0.00050136,120]
[377181430,1754268696489,-1413.4,0.00050136,120]
[377181431,1754268696499,-899.08,0.00050136,120]
[377181432,1754268696508,-1253.81,0.00050136,120]
[377181433,1754268696517,-400.0,0.00050136,120]
[377181434,1754268696527,-469.57,0.00050136,120]
[377181435,1754268696537,-400.0,0.00050136,120]
[377181436,1754268696546,-643.48,0.00050136,120]
[377181437,1754268696555,-400.0,0.00050136,120]
[377181438,1754268696564,-498.37,0.00050136,120]
[377181439,1754268696574,-457.25,0.00050136,120]
[377181440,1754268696583,-480.76,0.00050136,120]
[377181441,1754268696592,-1333.92,0.00050136,120]
[377181442,1754268696602,-1637.38,0.00050136,120]
[377181443,1754268696612,-400.18,0.00050136,120]
[377181444,1754268696622,-400.0,0.00050136,120]
[377181445,1754268696631,-1605.6,0.00050136,120]
[377181446,1754268696640,-1008.71,0.00050136,120]
[377181447,1754268696650,-400.0,0.00050136,120]
[377181448,1754268696659,-400.0,0.00050136,120]
[377181449,1754268696669,-923.19,0.00050136,120]
[377181450,1754268696679,-400.0,0.00050136,120]
[377181451,1754268696691,-400.0,0.00050136,120]
[377181452,1754268696701,-1382.88,0.00050136,120]
[377181453,1754268696717,-2537.67,0.00050136,120]
[377181454,1754268696732,-400.0,0.00050136,120]
[377181455,1754268696742,-425.3,0.00050136,120]
[377181456,1754268696752,-531.95,0.00050136,120]
[377181457,1754268696761,-722.7,0.00050136,120]
[377181458,1754268696771,-455.57,0.00050136,120]
[377181459,1754268696780,-400.0,0.00050136,120]
[377181460,1754268696790,-400.0,0.00050136,120]
[377181461,1754268696799,-400.0,0.00050136,120]
[377181462,1754268696810,-400.0,0.00050136,120]
[377181463,1754268696820,-400.0,0.00050136,120]
[377181464,1754268696830,-1556.65,0.00050136,120]
[377181465,1754268696839,-400.0,0.00050136,120]
[377181466,1754268696849,-2962.11,0.00050136,120]
[377181467,1754268696858,-669.47,0.00050136,120]
[377181468,1754268696868,-772.23,0.00050136,120]
[377181469,1754268696877,-1030.73,0.00050136,120]
[377181470,1754268696888,-400.0,0.00050136,120]
[377181471,1754268696897,-400.0,0.00050136,120]
[377181472,1754268696907,-1002.34,0.00050136,120]
[377181473,1754268696916,-400.0,0.00050136,120]
[377181474,1754268696926,-400.0,0.00050136,120]
[377181475,1754268696935,-6910.03,0.00050136,120]
[377181476,1754268696945,-316.53204631,0.00050136,120]
[377181477,1754268696955,-450.71,0.00050136,120]
[377181478,1754268696965,-652.98,0.00050136,120]
[377181479,1754268696975,-400.0,0.00050136,120]
[377181480,1754268696984,-493.79,0.00050136,120]
[377181481,1754268696994,-400.0,0.00050136,120]
[377181482,1754268697004,-7390.45,0.00050136,120]
[377181483,1754268697014,-550.23,0.00050136,120]
[377181484,1754268697023,-400.0,0.00050136,120]
[377181485,1754268697034,-1493.06,0.00050136,120]
[377181486,1754268697043,-400.0,0.00050136,120]
[377181487,1754268697054,-400.0,0.00050136,120]
[377181488,1754268697064,-400.0,0.00050136,120]
[377181489,1754268697073,-879.94,0.00050136,120]
[377181490,1754268697083,-400.0,0.00050136,120]
[377181491,1754268697093,-400.0,0.00050136,120]
[377181492,1754268697103,-1569.23,0.00050136,120]
[377181493,1754268697113,-400.0,0.00050136,120]
[377181494,1754268697123,-500.44,0.00050136,120]
[377181495,1754268697132,-790.99,0.00050136,120]
[377181496,1754268697142,-558.0,0.00050136,120]
[377181497,1754268697152,-400.0,0.00050136,120]
[377181498,1754268697161,-986.16,0.00050136,120]
[377181499,1754268697171,-400.0,0.00050136,120]
[377181500,1754268697181,-400.0,0.00050136,120]
[377181501,1754268697191,-453.96429378,0.00050136,120]
[377181502,1754268697201,-400.0,0.00050136,120]
[377181503,1754268697211,-381.20000187,0.00050136,120]
[377181504,1754268697220,-400.0,0.00050136,120]
[377181505,1754268697230,-400.0,0.00050136,120]
[377181506,1754268697240,-400.0,0.00050136,120]
[377181507,1754268697250,-1060.73,0.00050136,120]
[377181508,1754268697261,-400.0,0.00050136,120]
[377181509,1754268697271,-420.16053682,0.00050136,120]
[377181510,1754268697280,-1434.71,0.00050136,120]
[377181511,1754268697290,-668.69,0.00050136,120]
[377181512,1754268697300,-400.0,0.00050136,120]
[377181513,1754268697309,-852.72,0.00050136,120]
[377181514,1754268697320,-400.0,0.00050136,120]
[377181515,1754268697329,-400.0,0.00050136,120]
[377181516,1754268697339,-607.24,0.00050136,120]
[377181517,1754268697348,-435.18,0.00050136,120]
[377181518,1754268697358,-400.0,0.00050136,120]
[377181519,1754268697368,-400.0,0.00050136,120]
[377181520,1754268697378,-1703.79,0.00050136,120]
[377181521,1754268697388,-400.0,0.00050136,120]
[377181522,1754268697398,-526.94940408,0.00050136,120]
[377181523,1754268697407,-400.0,0.00050136,120]
[377181524,1754268697417,-400.0,0.00050136,120]
[377181525,1754268697426,-1017.05,0.00050136,120]
[377181526,1754268697440,-841.35,0.00050136,120]
[377181527,1754268697453,-400.0,0.00050136,120]
[377181528,1754268697462,-400.0,0.00050136,120]
[377181529,1754268697472,-757.28,0.00050136,120]
[377181530,1754268697482,-400.0,0.00050136,120]
[377181531,1754268697491,-400.0,0.00050136,120]
[377181532,1754268697500,-995.12,0.00050136,120]
[377181533,1754268697510,-7585.79,0.00050136,120]
[377181534,1754268697519,-1753.62,0.00050136,120]
[377181535,1754268697528,-425.9,0.00050136,120]
[377181536,1754268697538,-400.0,0.00050136,120]
[377181537,1754268697547,-400.0,0.00050136,120]
[377181538,1754268697557,-400.0,0.00050136,120]
[377181539,1754268697566,-400.0,0.00050136,120]
[377181540,1754268697576,-400.0,0.00050136,120]
[377181541,1754268697586,-400.0,0.00050136,120]
[377181542,1754268697598,-542.0,0.00050136,120]
[377181543,1754268697618,-1880.01,0.00050136,120]
[377181544,1754268697629,-400.0,0.00050136,120]
[377181545,1754268697639,-400.0,0.00050136,120]
[377181546,1754268697649,-400.0,0.00050136,120]
[377181547,1754268697659,-1978.0,0.00050136,14]
[377181548,1754268697669,-510.92,0.00050136,120]
[377181549,1754268697679,-1463.67,0.00050136,120]
[377181550,1754268697690,-742.92,0.00050136,120]
[377181551,1754268697700,-600.06,0.00050136,120]
[377181552,1754268697709,-1198.9,0.00050136,120]
[377181553,1754268697719,-400.0,0.00050136,120]
[377181554,1754268697730,-583.04,0.00050136,120]
[377181555,1754268697739,-1005.86,0.00050136,120]
[377181556,1754268697749,-2228.26,0.00050136,120]
[377181557,1754268697760,-741.27,0.00050136,120]
[377181558,1754268697770,-400.0,0.00050136,120]
[377181559,1754268697779,-433.14,0.00050136,120]
[377181560,1754268697789,-1033.18,0.00050136,120]
[377181561,1754268697798,-493.73,0.00050136,120]
[377181562,1754268697808,-400.0,0.00050136,120]
[377181563,1754268697819,-1536.49,0.00050136,120]
[377181564,1754268697828,-400.0,0.00050136,120]
[377181565,1754268697925,-586.15,0.00050136,120]
[377181566,1754268697935,-731.49,0.00050136,120]
[377181567,1754268697944,-1607.18,0.00050136,120]
[377181568,1754268697953,-729.84,0.00050136,120]
[377181569,1754268697963,-400.0,0.00050136,120]
[377181570,1754268697973,-400.0,0.00050136,120]
[377181571,1754268697982,-526.52,0.00050136,120]
[377181572,1754268697991,-400.0,0.00050136,120]
[377181573,1754268698001,-400.0,0.00050136,120]
[377181574,1754268698010,-400.0,0.00050136,120]
[377181575,1754268698019,-400.0,0.00050136,120]
[377181576,1754268698029,-400.0,0.00050136,120]
[377181577,1754268698038,-400.0,0.00050136,120]
[377181578,1754268698047,-400.0,0.00050136,120]
[377181579,1754268698056,-833.33,0.00050136,120]
[377181580,1754268698066,-400.0,0.00050136,120]
[377181581,1754268698075,-950.98,0.00050136,120]
[377181582,1754268698085,-400.0,0.00050136,120]
[377181583,1754268698095,-5414.63,0.00050136,120]
[377181584,1754268698104,-1184.53,0.00050136,120]
[377181585,1754268698114,-428.29414356,0.00050136,120]
[377181586,1754268698124,-1343.31,0.00050136,120]
[377181587,1754268698134,-4075.46,0.00050136,120]
[377181588,1754268698143,-400.0,0.00050136,120]
[377181589,1754268698153,-400.0,0.00050136,120]
[377181590,1754268698163,-400.0,0.00050136,120]
[377181591,1754268698173,-400.0,0.00050136,120]
[377181592,1754268698183,-400.0,0.00050136,120]
[377181593,1754268698193,-400.0,0.00050136,120]
[377181594,1754268698202,-1379.69,0.00050136,120]
[377181595,1754268698211,-400.0,0.00050136,120]
[377181596,1754268698221,-1030.88,0.00050136,120]
[377181597,1754268698231,-2593.84,0.00050136,120]
[377181598,1754268698240,-400.0,0.00050136,120]
[377181599,1754268698249,-411.9,0.00050136,120]
[377181600,1754268698259,-445.51,0.00050136,120]
[377181601,1754268698268,-400.0,0.00050136,120]
[377181602,1754268698279,-1206.22,0.00050136,120]
[377181603,1754268698289,-607.02,0.00050136,120]
[377181604,1754268698298,-833.57,0.00050136,120]
[377181605,1754268698307,-400.0,0.00050136,16]
[377181606,1754268698317,-400.0,0.00050136,120]
[377181607,1754268698327,-1399.31,0.00050136,120]
[377181608,1754268698337,-400.0,0.00050136,120]
[377181609,1754268698347,-538.01,0.00050136,120]
[377181610,1754268698357,-400.0,0.00050136,120]
[377181611,1754268698366,-400.0,0.00050136,120]
[377181612,1754268698376,-400.0,0.00050136,120]
[377181613,1754268698385,-400.0,0.00050136,120]
[377181614,1754268698395,-2840.83,0.00050136,120]
[377181615,1754268698405,-400.0,0.00050136,120]
[377181616,1754268698414,-803.92,0.00050136,120]
[377181617,1754268698424,-403.21,0.00050136,120]
[377181618,1754268698434,-400.0,0.00050136,120]
[377181619,1754268698444,-475.93,0.00050136,120]
[377181620,1754268698454,-400.0,0.00050136,120]
[377181621,1754268698464,-400.0,0.00050136,120]
[377181622,1754268698474,-400.0,0.00050136,120]
[377181623,1754268698484,-400.0,0.00050136,120]
[377181624,1754268698494,-1006.17,0.00050136,120]
[377181625,1754268698503,-400.0,0.00050136,120]
[377181626,1754268698513,-400.0,0.00050136,120]
[377181627,1754268698523,-400.0,0.00050136,120]
[377181628,1754268698533,-400.0,0.00050136,120]
[377181629,1754268698543,-621.49,0.00050136,120]
[377181630,1754268698552,-758.57,0.00050136,120]
[377181631,1754268698562,-400.0,0.00050136,120]
[377181632,1754268698571,-400.0,0.00050136,120]
[377181633,1754268698581,-400.0,0.00050136,120]
[377181634,1754268698591,-1049.57,0.00050136,120]
[377181635,1754268698603,-400.0,0.00050136,120]
[377181636,1754268698615,-400.0,0.00050136,120]
[377181637,1754268698624,-400.0,0.00050136,120]
[377181638,1754268698633,-1350.55,0.00050136,120]
[377181639,1754268698643,-876.85,0.00050136,120]
[377181640,1754268698653,-209.38527053,0.00050136,120]
[377181641,1754268698663,-1044.86,0.00050136,120]
[377181642,1754268698673,-496.26,0.00050136,120]
[377181643,1754268698685,-801.02,0.00050136,120]
[377181644,1754268698695,-400.0,0.00050136,2]
[377181645,1754268698705,-400.0,0.00050136,120]
[377181646,1754268698714,-400.0,0.00050136,120]
[377181647,1754268698724,-400.0,0.00050136,120]
[377181648,1754268698733,-400.0,0.00050136,120]
[377181649,1754268698742,-400.0,0.00050136,120]
[377181650,1754268698752,-400.0,0.00050136,120]
[377181651,1754268698761,-451.79969859,0.00050136,120]
[377181652,1754268698771,-400.0,0.00050136,120]
[377181653,1754268698780,-400.0,0.00050136,120]
[377181654,1754268698790,-2403.7,0.00050136,120]
[377181655,1754268698799,-563.95,0.00050136,120]
[377181656,1754268698809,-400.0,0.00050136,120]
[377181657,1754268698818,-400.0,0.00050136,120]
[377181658,1754268698827,-400.0,0.00050136,120]
[377181659,1754268698837,-688.74,0.00050136,120]
[377181660,1754268698846,-400.0,0.00050136,120]
[377181661,1754268698858,-1799.51,0.00050136,120]
[377181662,1754268698868,-400.0,0.00050136,120]
[377181663,1754268698877,-400.0,0.00050136,120]
[377181664,1754268698887,-400.0,0.00050136,120]
[377181665,1754268698897,-1965.73,0.00050136,120]
[377181666,1754268698907,-400.0,0.00050136,120]
[377181667,1754268698916,-400.0,0.00050136,120]
[377181668,1754268698926,-400.0,0.00050136,120]
[377181669,1754268698936,-400.0,0.00050136,120]
[377181670,1754268698947,-400.0,0.00050136,120]
[377181671,1754268698957,-150.0,0.00050139,30]
[377181672,1754268698967,-150.0,0.0005014,7]
[377181673,1754268698977,-150.0,0.00050142,7]
[377181674,1754268698986,-2349.88,0.0005017,7]
[377181675,1754268698996,-150.0,0.00050178,7]
[377181676,1754268699006,-150.0,0.00050181,7]
[377181677,1754268699016,-150.0,0.00050184,7]
[377181678,1754268699025,-150.0,0.00050226,7]
[377181679,1754268699035,-150.0,0.00050278,7]
[377181680,1754268699044,-855.13,0.00050309,120]
[377181681,1754268699054,-213.687699,0.0005031,120]
[377181682,1754268699063,-577.67,0.0005031,120]
[377181683,1754268699072,-213.687699,0.0005031,120]
[377181684,1754268699082,-400.0,0.0005031,120]
[377181685,1754268699091,-400.0,0.0005031,120]
[377181686,1754268699101,-400.0,0.0005031,120]
[377181687,1754268699111,-622.82,0.0005031,120]
[377181688,1754268699120,-400.0,0.0005031,120]
[377181689,1754268699130,-400.0,0.0005031,120]
[377181690,1754268699140,-644.55,0.0005031,120]
[377181691,1754268699150,-461.64,0.0005031,120]
[377181692,1754268699160,-400.0,0.0005031,120]
[377181693,1754268699169,-400.0,0.0005031,120]
[377181694,1754268699178,-787.59,0.0005031,120]
[377181695,1754268699188,-564.34,0.0005031,120]
[377181696,1754268699198,-400.0,0.0005031,120]
[377181697,1754268699206,-400.0,0.0005031,120]
[377181698,1754268699215,-400.0,0.0005031,120]
[377181699,1754268699225,-400.0,0.0005031,120]
[377181700,1754268699235,-514.06,0.0005031,120]
[377181701,1754268699245,-603.45,0.0005031,120]